[Event "Titled Tuesday Blitz May 24 Early 2022"]
[White "Fromm, Marius"]
[Black "Zavgorodniy, Sergiy"]
[WhiteFideId "12993190"]
[BlackFideId "14110148"]
[WhiteElo "2537"]
[BlackElo "2420"]
[Result "0-1"]
[Round "09"]
[TimeControl "180+1"]
[Date "2022.05.25"]
[WhiteClock "0:00:01"]
[BlackClock "0:00:33"]

1. e4 {[%clk 0:03:00]}  e5 {[%clk 0:02:59]} 2. Nf3 {[%clk 0:03:00]}  d6 {[%clk 0:02:58]} 3. d4 {[%clk 0:03:00]}  exd4 {[%clk 0:02:58]} 4. Nxd4 {[%clk 0:03:00]}  Nf6 {[%clk 0:02:58]} 5. Nc3 {[%clk 0:03:01]}  Be7 {[%clk 0:02:58]} 6. Bf4 {[%clk 0:03:00]}  O-O {[%clk 0:02:58]} 7. Qd2 {[%clk 0:03:01]}  c6 {[%clk 0:02:56]} 8. O-O-O {[%clk 0:02:54]}  b5 {[%clk 0:02:55]} 9. f3 {[%clk 0:02:49]}  b4 {[%clk 0:02:54]} 10. Nce2 {[%clk 0:02:44]}  c5 {[%clk 0:02:53]} 11. Nf5 {[%clk 0:02:22]}  Bxf5 {[%clk 0:02:52]} 12. exf5 {[%clk 0:02:23]}  d5 {[%clk 0:02:53]} 13. g4 {[%clk 0:02:23]}  d4 {[%clk 0:02:53]} 14. Ng3 {[%clk 0:02:16]}  Nd5 {[%clk 0:02:52]} 15. Kb1 {[%clk 0:02:09]}  Nd7 {[%clk 0:02:48]} 16. h4 {[%clk 0:02:02]}  Qa5 {[%clk 0:02:43]} 17. Ka1 {[%clk 0:01:19]}  N7b6 {[%clk 0:02:36]} 18. g5 {[%clk 0:01:15]}  c4 {[%clk 0:02:10]} 19. f6 {[%clk 0:00:51]}  c3 {[%clk 0:02:04]} 20. Qc1 {[%clk 0:00:51]}  b3 {[%clk 0:01:50]} 21. cxb3 {[%clk 0:00:47]}  Bb4 {[%clk 0:01:35]} 22. Ne2 {[%clk 0:00:32]}  Rfc8 {[%clk 0:01:31]} 23. bxc3 {[%clk 0:00:19]}  Nxc3 {[%clk 0:01:12]} 24. Nxc3 {[%clk 0:00:17]}  Bxc3+ {[%clk 0:01:12]} 25. Kb1 {[%clk 0:00:17]}  Nd5 {[%clk 0:01:06]} 26. Bd3 {[%clk 0:00:09]}  Bb4 {[%clk 0:01:02]} 27. Qb2 {[%clk 0:00:06]}  Nxf4 {[%clk 0:00:48]} 28. Qxd4 {[%clk 0:00:03]}  Nxd3 {[%clk 0:00:45]} 29. Rxd3 {[%clk 0:00:02]}  Rd8 {[%clk 0:00:44]} 30. Qe4 {[%clk 0:00:01]}  Rxd3 {[%clk 0:00:44]} 31. Qxd3 {[%clk 0:00:02]}  Rd8 {[%clk 0:00:44]} 32. Qc4 {[%clk 0:00:02]}  Qf5+ {[%clk 0:00:38]} 33. Ka1 {[%clk 0:00:01]}  Bd6 {[%clk 0:00:33]} 34. Rc1 {[%clk 0:00:01]}  Be5+ {[%clk 0:00:33]} 0-1


[Site "https://www.chess.com"]

[Event "Titled Tuesday Blitz May 24 Early 2022"]
[White "Gabrielian, Artur"]
[Black "Pranav, V"]
[WhiteFideId "4131002"]
[BlackFideId "25060783"]
[WhiteElo "2440"]
[BlackElo "2349"]
[Result "0-1"]
[Round "09"]
[TimeControl "180+1"]
[Date "2022.05.24"]
[WhiteClock "0:00:12"]
[BlackClock "0:00:55"]

1. e4 {[%clk 0:03:00]}  e5 {[%clk 0:02:54]} 2. Nf3 {[%clk 0:03:00]}  Nc6 {[%clk 0:02:52]} 3. Bc4 {[%clk 0:03:00]}  Nf6 {[%clk 0:02:50]} 4. d3 {[%clk 0:03:00]}  d6 {[%clk 0:02:49]} 5. Ng5 {[%clk 0:02:49]}  Bg4 {[%clk 0:02:48]} 6. f3 {[%clk 0:02:44]}  Bh5 {[%clk 0:02:47]} 7. O-O {[%clk 0:02:36]}  h6 {[%clk 0:02:45]} 8. Nh3 {[%clk 0:02:36]}  g5 {[%clk 0:02:45]} 9. Nf2 {[%clk 0:02:35]}  Rg8 {[%clk 0:02:46]} 10. g4 {[%clk 0:02:35]}  Bg6 {[%clk 0:02:46]} 11. h3 {[%clk 0:02:35]}  Be7 {[%clk 0:02:41]} 12. Nc3 {[%clk 0:02:32]}  h5 {[%clk 0:02:41]} 13. Nd5 {[%clk 0:02:30]}  Nxd5 {[%clk 0:02:36]} 14. Bxd5 {[%clk 0:02:30]}  Nd4 {[%clk 0:02:36]} 15. c3 {[%clk 0:02:20]}  Ne6 {[%clk 0:02:36]} 16. Bxb7 {[%clk 0:02:19]}  Rb8 {[%clk 0:02:34]} 17. Bc6+ {[%clk 0:02:19]}  Kf8 {[%clk 0:02:34]} 18. b4 {[%clk 0:02:19]}  Nf4 {[%clk 0:02:32]} 19. Be3 {[%clk 0:02:05]}  Kg7 {[%clk 0:02:22]} 20. d4 {[%clk 0:02:03]}  Bf6 {[%clk 0:02:21]} 21. d5 {[%clk 0:01:40]}  Rh8 {[%clk 0:02:19]} 22. Bxf4 {[%clk 0:01:08]}  gxf4 {[%clk 0:02:15]} 23. Kg2 {[%clk 0:01:05]}  Bh4 {[%clk 0:02:12]} 24. Rh1 {[%clk 0:01:04]}  Bxf2 {[%clk 0:02:11]} 25. Kxf2 {[%clk 0:01:04]}  Qh4+ {[%clk 0:02:12]} 26. Ke2 {[%clk 0:01:05]}  a5 {[%clk 0:02:04]} 27. b5 {[%clk 0:01:04]}  hxg4 {[%clk 0:02:02]} 28. hxg4 {[%clk 0:01:03]}  Qg3 {[%clk 0:02:02]} 29. Qg1 {[%clk 0:00:53]}  Rxh1 {[%clk 0:02:00]} 30. Qxg3 {[%clk 0:00:50]}  Rxa1 {[%clk 0:01:58]} 31. Qh4 {[%clk 0:00:49]}  a4 {[%clk 0:01:34]} 32. Qe7 {[%clk 0:00:46]}  Rxa2+ {[%clk 0:01:31]} 33. Kd3 {[%clk 0:00:47]}  Rh8 {[%clk 0:01:30]} 34. Qxc7 {[%clk 0:00:43]}  Rh3 {[%clk 0:01:22]} 35. Qxd6 {[%clk 0:00:40]}  Rxf3+ {[%clk 0:01:22]} 36. Kc4 {[%clk 0:00:40]}  Rc2 {[%clk 0:01:18]} 37. Qxe5+ {[%clk 0:00:39]}  Kh7 {[%clk 0:01:19]} 38. b6 {[%clk 0:00:36]}  a3 {[%clk 0:01:10]} 39. b7 {[%clk 0:00:32]}  a2 {[%clk 0:01:09]} 40. b8=Q {[%clk 0:00:21]}  Rcxc3+ {[%clk 0:01:09]} 41. Qxc3 {[%clk 0:00:16]}  Rxc3+ {[%clk 0:01:10]} 42. Kxc3 {[%clk 0:00:17]}  a1=Q+ {[%clk 0:01:10]} 43. Qb2 {[%clk 0:00:17]}  Qe1+ {[%clk 0:01:07]} 44. Qd2 {[%clk 0:00:16]}  Qxe4 {[%clk 0:01:08]} 45. Bb5 {[%clk 0:00:14]}  Qe5+ {[%clk 0:01:02]} 46. Kb4 {[%clk 0:00:13]}  Qd6+ {[%clk 0:01:01]} 47. Kc3 {[%clk 0:00:12]}  Qc5+ {[%clk 0:00:54]} 48. Bc4 {[%clk 0:00:12]}  Qa5+ {[%clk 0:00:55]} 0-1


[Site "https://www.chess.com"]

[Event "Titled Tuesday Blitz May 24 Early 2022"]
[White "Golubev, Mikhail"]
[Black "Hakemi, Arman"]
[WhiteFideId "14100983"]
[BlackFideId "22520805"]
[WhiteElo "2374"]
[BlackElo "2115"]
[Result "1-0"]
[Round "09"]
[TimeControl "180+1"]
[Date "2022.05.25"]
[WhiteClock "0:00:27"]
[BlackClock "0:00:04"]

1. e4 {[%clk 0:02:38]}  e5 {[%clk 0:02:57]} 2. Nf3 {[%clk 0:02:38]}  Nf6 {[%clk 0:02:47]} 3. Nc3 {[%clk 0:02:36]}  Nc6 {[%clk 0:02:38]} 4. d4 {[%clk 0:02:35]}  exd4 {[%clk 0:02:34]} 5. Nxd4 {[%clk 0:02:36]}  Bb4 {[%clk 0:02:28]} 6. Nxc6 {[%clk 0:02:36]}  bxc6 {[%clk 0:02:26]} 7. Bd3 {[%clk 0:02:36]}  O-O {[%clk 0:02:14]} 8. O-O {[%clk 0:02:35]}  d5 {[%clk 0:01:42]} 9. exd5 {[%clk 0:02:35]}  Bg4 {[%clk 0:01:29]} 10. f3 {[%clk 0:02:23]}  Bh5 {[%clk 0:01:24]} 11. Bg5 {[%clk 0:02:13]}  Qd6 {[%clk 0:01:19]} 12. Kh1 {[%clk 0:01:46]}  Bxc3 {[%clk 0:01:03]} 13. bxc3 {[%clk 0:01:46]}  cxd5 {[%clk 0:01:00]} 14. c4 {[%clk 0:01:42]}  dxc4 {[%clk 0:00:57]} 15. Bxc4 {[%clk 0:01:31]}  Qc6 {[%clk 0:00:57]} 16. Bb3 {[%clk 0:01:23]}  Rad8 {[%clk 0:00:50]} 17. Qc1 {[%clk 0:01:22]}  Rfe8 {[%clk 0:00:44]} 18. Qf4 {[%clk 0:01:18]}  Re2 {[%clk 0:00:35]} 19. Rae1 {[%clk 0:01:13]}  Rde8 {[%clk 0:00:30]} 20. Rxe2 {[%clk 0:01:09]}  Rxe2 {[%clk 0:00:28]} 21. Rd1 {[%clk 0:00:50]}  Qe8 {[%clk 0:00:17]} 22. h3 {[%clk 0:00:35]}  Re1+ {[%clk 0:00:13]} 23. Rxe1 {[%clk 0:00:35]}  Qxe1+ {[%clk 0:00:10]} 24. Kh2 {[%clk 0:00:36]}  Qe7 {[%clk 0:00:04]} 25. Qd4 {[%clk 0:00:27]} 1-0


[Site "https://www.chess.com"]

[Event "Titled Tuesday Blitz May 24 Early 2022"]
[White "Grischuk, Alexander"]
[Black "Nakamura, Hikaru"]
[WhiteFideId "4126025"]
[BlackFideId "2016192"]
[WhiteElo "2762"]
[BlackElo "2850"]
[Result "1/2-1/2"]
[Round "09"]
[TimeControl "180+1"]
[Date "2022.05.24"]
[WhiteClock "0:00:05"]
[BlackClock "0:00:12"]

1. d4 {[%clk 0:03:00]}  Nf6 {[%clk 0:02:59]} 2. c4 {[%clk 0:03:01]}  e6 {[%clk 0:03:00]} 3. Nc3 {[%clk 0:03:01]}  Bb4 {[%clk 0:03:00]} 4. e3 {[%clk 0:03:02]}  O-O {[%clk 0:03:00]} 5. a3 {[%clk 0:03:02]}  Bxc3+ {[%clk 0:03:00]} 6. bxc3 {[%clk 0:03:03]}  c5 {[%clk 0:03:00]} 7. Bd3 {[%clk 0:03:02]}  Nc6 {[%clk 0:03:00]} 8. Nf3 {[%clk 0:03:02]}  d6 {[%clk 0:03:00]} 9. e4 {[%clk 0:03:02]}  e5 {[%clk 0:03:00]} 10. h3 {[%clk 0:03:03]}  exd4 {[%clk 0:02:29]} 11. cxd4 {[%clk 0:03:03]}  Re8 {[%clk 0:02:26]} 12. O-O {[%clk 0:02:33]}  Nxe4 {[%clk 0:02:26]} 13. Re1 {[%clk 0:02:08]}  f5 {[%clk 0:02:15]} 14. d5 {[%clk 0:02:00]}  Nd4 {[%clk 0:02:07]} 15. Bxe4 {[%clk 0:01:48]}  Rxe4 {[%clk 0:01:44]} 16. Rxe4 {[%clk 0:01:48]}  Nxf3+ {[%clk 0:01:44]} 17. Qxf3 {[%clk 0:01:49]}  fxe4 {[%clk 0:01:45]} 18. Qxe4 {[%clk 0:01:48]}  Bd7 {[%clk 0:01:46]} 19. Rb1 {[%clk 0:01:17]}  b6 {[%clk 0:01:28]} 20. Rb3 {[%clk 0:01:17]}  Qe8 {[%clk 0:01:28]} 21. Qf4 {[%clk 0:01:11]}  Qf8 {[%clk 0:00:53]} 22. Qd2 {[%clk 0:00:58]}  Re8 {[%clk 0:00:46]} 23. Bb2 {[%clk 0:00:58]}  Re7 {[%clk 0:00:25]} 24. Rg3 {[%clk 0:00:58]}  Rf7 {[%clk 0:00:22]} 25. h4 {[%clk 0:00:50]}  h5 {[%clk 0:00:13]} 26. Qg5 {[%clk 0:00:30]}  Qe7 {[%clk 0:00:13]} 27. Qxe7 {[%clk 0:00:12]}  Rxe7 {[%clk 0:00:14]} 28. Rg6 {[%clk 0:00:12]}  Ba4 {[%clk 0:00:11]} 29. Rxd6 {[%clk 0:00:12]}  Kf7 {[%clk 0:00:11]} 30. Rd8 {[%clk 0:00:11]}  Re8 {[%clk 0:00:10]} 31. Rxe8 {[%clk 0:00:09]}  Bxe8 {[%clk 0:00:10]} 32. Be5 {[%clk 0:00:07]}  a6 {[%clk 0:00:08]} 33. Bc7 {[%clk 0:00:06]}  b5 {[%clk 0:00:09]} 34. cxb5 {[%clk 0:00:06]}  Bxb5 {[%clk 0:00:08]} 35. Bd6 {[%clk 0:00:05]}  Bc4 {[%clk 0:00:08]} 36. Bxc5 {[%clk 0:00:05]}  Bxd5 {[%clk 0:00:09]} 37. f3 {[%clk 0:00:06]}  g6 {[%clk 0:00:09]} 38. Kf2 {[%clk 0:00:06]}  Ke6 {[%clk 0:00:10]} 39. Ke3 {[%clk 0:00:06]}  Bc6 {[%clk 0:00:11]} 40. Kf4 {[%clk 0:00:06]}  Bd5 {[%clk 0:00:11]} 41. Bb4 {[%clk 0:00:06]}  Bc6 {[%clk 0:00:11]} 42. Kg5 {[%clk 0:00:06]}  Kf7 {[%clk 0:00:11]} 43. Kf4 {[%clk 0:00:06]}  Ke6 {[%clk 0:00:11]} 44. g4 {[%clk 0:00:07]}  Bb7 {[%clk 0:00:11]} 45. gxh5 {[%clk 0:00:05]}  gxh5 {[%clk 0:00:12]} 46. Bc3 {[%clk 0:00:05]} 1/2-1/2


[Site "https://www.chess.com"]

[Event "Titled Tuesday Blitz May 24 Early 2022"]
[White "Gurevich, Dmitry"]
[Black "Haas, Michael"]
[WhiteFideId "2000407"]
[BlackFideId "1629514"]
[WhiteElo "2506"]
[BlackElo "1982"]
[Result "1-0"]
[Round "09"]
[TimeControl "180+1"]
[Date "2022.05.25"]
[WhiteClock "0:01:10"]
[BlackClock "0:00:19"]

1. d4 {[%clk 0:03:00]}  d5 {[%clk 0:02:56]} 2. c4 {[%clk 0:03:00]}  dxc4 {[%clk 0:02:56]} 3. Nf3 {[%clk 0:02:57]}  Nf6 {[%clk 0:02:53]} 4. e3 {[%clk 0:02:57]}  Bg4 {[%clk 0:02:51]} 5. Bxc4 {[%clk 0:02:56]}  e6 {[%clk 0:02:52]} 6. O-O {[%clk 0:02:55]}  Be7 {[%clk 0:02:50]} 7. Nc3 {[%clk 0:02:55]}  O-O {[%clk 0:02:49]} 8. Be2 {[%clk 0:02:55]}  Nbd7 {[%clk 0:02:48]} 9. Qb3 {[%clk 0:02:55]}  b6 {[%clk 0:02:13]} 10. Rd1 {[%clk 0:02:50]}  Qe8 {[%clk 0:02:03]} 11. h3 {[%clk 0:02:44]}  Bh5 {[%clk 0:01:52]} 12. g4 {[%clk 0:02:31]}  Bg6 {[%clk 0:01:52]} 13. Bb5 {[%clk 0:02:31]}  Qd8 {[%clk 0:01:25]} 14. Ne5 {[%clk 0:02:27]}  a6 {[%clk 0:01:06]} 15. Bc6 {[%clk 0:02:17]}  Rb8 {[%clk 0:01:06]} 16. g5 {[%clk 0:02:17]}  Nxe5 {[%clk 0:00:54]} 17. dxe5 {[%clk 0:02:15]}  Nd5 {[%clk 0:00:44]} 18. e4 {[%clk 0:02:14]}  Bxg5 {[%clk 0:00:43]} 19. exd5 {[%clk 0:02:05]}  Bxc1 {[%clk 0:00:42]} 20. Raxc1 {[%clk 0:02:03]}  Qg5+ {[%clk 0:00:42]} 21. Kf1 {[%clk 0:02:03]}  Bh5 {[%clk 0:00:25]} 22. Ne4 {[%clk 0:01:20]}  Qf5 {[%clk 0:00:19]} 23. Re1 {[%clk 0:01:12]}  Qxh3+ {[%clk 0:00:19]} 24. Qxh3 {[%clk 0:01:10]} 1-0


[Site "https://www.chess.com"]

[Event "Titled Tuesday Blitz May 24 Early 2022"]
[White "Itkis, Boris"]
[Black "Domingo Nunez, Ruben"]
[WhiteFideId "1209167"]
[BlackFideId "22245570"]
[WhiteElo "2207"]
[BlackElo "2376"]
[Result "0-1"]
[Round "09"]
[TimeControl "180+1"]
[Date "2022.05.25"]
[WhiteClock "0:02:36"]
[BlackClock "0:02:44"]

1. Nf3 {[%clk 0:03:00]}  e6 {[%clk 0:02:59]} 2. b3 {[%clk 0:02:59]}  b6 {[%clk 0:02:56]} 3. Bb2 {[%clk 0:02:59]}  Bb7 {[%clk 0:02:56]} 4. e3 {[%clk 0:03:00]}  f5 {[%clk 0:02:51]} 5. d4 {[%clk 0:02:59]}  Nf6 {[%clk 0:02:52]} 6. Nbd2 {[%clk 0:02:59]}  Be7 {[%clk 0:02:50]} 7. c4 {[%clk 0:02:59]}  O-O {[%clk 0:02:51]} 8. Be2 {[%clk 0:02:59]}  c5 {[%clk 0:02:50]} 9. O-O {[%clk 0:02:59]}  Qc7 {[%clk 0:02:49]} 10. Qc2 {[%clk 0:02:48]}  h6 {[%clk 0:02:48]} 11. Rac1 {[%clk 0:02:47]}  d6 {[%clk 0:02:48]} 12. Bd3 {[%clk 0:02:41]}  Nc6 {[%clk 0:02:44]} 13. e4 {[%clk 0:02:36]}  Nb4 {[%clk 0:02:44]} 0-1


[Site "https://www.chess.com"]

[Event "Titled Tuesday Blitz May 24 Early 2022"]
[White "Jakubowski, Krzysztof"]
[Black "Fernandez Siles, Luis"]
[WhiteFideId "1112848"]
[BlackFideId "2209420"]
[WhiteElo "2365"]
[BlackElo "2212"]
[Result "1-0"]
[Round "09"]
[TimeControl "180+1"]
[Date "2022.05.25"]
[WhiteClock "0:00:08"]
[BlackClock "0:00:02"]

1. e4 {[%clk 0:03:00]}  c5 {[%clk 0:02:58]} 2. Nf3 {[%clk 0:02:59]}  Nc6 {[%clk 0:02:59]} 3. d4 {[%clk 0:02:58]}  cxd4 {[%clk 0:03:00]} 4. Nxd4 {[%clk 0:02:58]}  Nf6 {[%clk 0:03:00]} 5. Nc3 {[%clk 0:02:57]}  e5 {[%clk 0:03:01]} 6. Ndb5 {[%clk 0:02:57]}  d6 {[%clk 0:03:01]} 7. Bg5 {[%clk 0:02:56]}  a6 {[%clk 0:03:01]} 8. Na3 {[%clk 0:02:56]}  b5 {[%clk 0:03:02]} 9. Nd5 {[%clk 0:02:55]}  Be7 {[%clk 0:03:02]} 10. Bxf6 {[%clk 0:02:55]}  Bxf6 {[%clk 0:03:03]} 11. c3 {[%clk 0:02:55]}  O-O {[%clk 0:03:02]} 12. Nc2 {[%clk 0:02:55]}  Rb8 {[%clk 0:03:02]} 13. h4 {[%clk 0:02:54]}  Be7 {[%clk 0:03:01]} 14. a3 {[%clk 0:02:51]}  a5 {[%clk 0:02:53]} 15. b4 {[%clk 0:02:45]}  Be6 {[%clk 0:02:44]} 16. Nce3 {[%clk 0:02:44]}  Qd7 {[%clk 0:02:39]} 17. Bd3 {[%clk 0:02:41]}  Bd8 {[%clk 0:02:39]} 18. Qe2 {[%clk 0:02:38]}  Ne7 {[%clk 0:02:37]} 19. Nxe7+ {[%clk 0:02:34]}  Bxe7 {[%clk 0:02:36]} 20. bxa5 {[%clk 0:02:30]}  d5 {[%clk 0:02:19]} 21. exd5 {[%clk 0:02:27]}  Bxd5 {[%clk 0:02:17]} 22. Bxh7+ {[%clk 0:02:23]}  Kxh7 {[%clk 0:02:04]} 23. Qd3+ {[%clk 0:02:22]}  Kg8 {[%clk 0:02:01]} 24. Qxd5 {[%clk 0:02:19]}  Qc7 {[%clk 0:01:59]} 25. Qb3 {[%clk 0:02:08]}  Rfd8 {[%clk 0:01:48]} 26. a6 {[%clk 0:01:54]}  Rd3 {[%clk 0:01:38]} 27. Rc1 {[%clk 0:01:37]}  b4 {[%clk 0:01:38]} 28. Nd5 {[%clk 0:01:29]}  Qc5 {[%clk 0:01:16]} 29. Nxe7+ {[%clk 0:01:27]}  Qxe7 {[%clk 0:01:16]} 30. axb4 {[%clk 0:01:27]}  e4 {[%clk 0:01:11]} 31. Qc4 {[%clk 0:01:18]}  Rbd8 {[%clk 0:01:06]} 32. O-O {[%clk 0:01:01]}  Qxh4 {[%clk 0:01:06]} 33. a7 {[%clk 0:00:57]}  R3d6 {[%clk 0:00:47]} 34. g3 {[%clk 0:00:55]}  Rg6 {[%clk 0:00:43]} 35. Qc7 {[%clk 0:00:44]}  Rf8 {[%clk 0:00:41]} 36. Ra1 {[%clk 0:00:40]}  e3 {[%clk 0:00:38]} 37. a8=Q {[%clk 0:00:38]}  exf2+ {[%clk 0:00:38]} 38. Rxf2 {[%clk 0:00:36]}  Rxg3+ {[%clk 0:00:37]} 39. Qxg3 {[%clk 0:00:28]}  Qxg3+ {[%clk 0:00:37]} 40. Qg2 {[%clk 0:00:27]}  Qxc3 {[%clk 0:00:37]} 41. Rb1 {[%clk 0:00:23]}  Qd3 {[%clk 0:00:37]} 42. Rbf1 {[%clk 0:00:22]}  Qd4 {[%clk 0:00:35]} 43. b5 {[%clk 0:00:20]}  Qc5 {[%clk 0:00:35]} 44. Qc6 {[%clk 0:00:19]}  Qg5+ {[%clk 0:00:34]} 45. Rg2 {[%clk 0:00:20]}  Qe3+ {[%clk 0:00:35]} 46. Kh2 {[%clk 0:00:19]}  Qe5+ {[%clk 0:00:34]} 47. Rg3 {[%clk 0:00:19]}  Qh5+ {[%clk 0:00:33]} 48. Kg2 {[%clk 0:00:18]}  Qe2+ {[%clk 0:00:32]} 49. Rf2 {[%clk 0:00:19]}  Qe5 {[%clk 0:00:26]} 50. b6 {[%clk 0:00:17]}  Rb8 {[%clk 0:00:27]} 51. b7 {[%clk 0:00:17]}  g6 {[%clk 0:00:23]} 52. Qc8+ {[%clk 0:00:16]}  Kg7 {[%clk 0:00:23]} 53. Qd7 {[%clk 0:00:16]}  Qe4+ {[%clk 0:00:23]} 54. Kg1 {[%clk 0:00:16]}  Qe1+ {[%clk 0:00:23]} 55. Kg2 {[%clk 0:00:16]}  Qe4+ {[%clk 0:00:23]} 56. Rgf3 {[%clk 0:00:14]}  Rxb7 {[%clk 0:00:19]} 57. Qd3 {[%clk 0:00:13]}  Qg4+ {[%clk 0:00:19]} 58. Rg3 {[%clk 0:00:14]}  Qe6 {[%clk 0:00:18]} 59. Qc3+ {[%clk 0:00:14]}  f6 {[%clk 0:00:18]} 60. Re3 {[%clk 0:00:14]}  Qd5+ {[%clk 0:00:17]} 61. Ref3 {[%clk 0:00:14]}  Rf7 {[%clk 0:00:15]} 62. Rd2 {[%clk 0:00:13]}  Qg5+ {[%clk 0:00:15]} 63. Kf1 {[%clk 0:00:14]}  Re7 {[%clk 0:00:13]} 64. Rdf2 {[%clk 0:00:11]}  Qb5+ {[%clk 0:00:13]} 65. Kg2 {[%clk 0:00:10]}  Qg5+ {[%clk 0:00:13]} 66. Rg3 {[%clk 0:00:11]}  Qd5+ {[%clk 0:00:13]} 67. Qf3 {[%clk 0:00:11]}  Qd6 {[%clk 0:00:13]} 68. Qg4 {[%clk 0:00:11]}  g5 {[%clk 0:00:13]} 69. Qf5 {[%clk 0:00:11]}  Qc6+ {[%clk 0:00:13]} 70. Qf3 {[%clk 0:00:11]}  Qd6 {[%clk 0:00:13]} 71. Qd3 {[%clk 0:00:11]}  Qc6+ {[%clk 0:00:11]} 72. Qf3 {[%clk 0:00:11]}  Qd6 {[%clk 0:00:11]} 73. Rg4 {[%clk 0:00:11]}  Ra7 {[%clk 0:00:08]} 74. Re4 {[%clk 0:00:11]}  Ra3 {[%clk 0:00:08]} 75. Re3 {[%clk 0:00:10]}  Ra4 {[%clk 0:00:06]} 76. Rd3 {[%clk 0:00:09]}  Qe5 {[%clk 0:00:06]} 77. Rd7+ {[%clk 0:00:08]}  Kg6 {[%clk 0:00:05]} 78. Qd3+ {[%clk 0:00:08]}  f5 {[%clk 0:00:02]} 79. Re2 {[%clk 0:00:08]} 1-0


[Site "https://www.chess.com"]

[Event "Titled Tuesday Blitz May 24 Early 2022"]
[White "Janaszak, Dawid"]
[Black "Begunov, Konstantin"]
[WhiteFideId "1119206"]
[BlackFideId "4118510"]
[WhiteElo "2199"]
[BlackElo "2262"]
[Result "1-0"]
[Round "09"]
[TimeControl "180+1"]
[Date "2022.05.25"]
[WhiteClock "0:00:41"]
[BlackClock "0:00:01"]

1. e4 {[%clk 0:03:00]}  c5 {[%clk 0:02:58]} 2. Nc3 {[%clk 0:03:00]}  d6 {[%clk 0:02:55]} 3. f4 {[%clk 0:02:58]}  Nc6 {[%clk 0:02:54]} 4. Nf3 {[%clk 0:02:59]}  g6 {[%clk 0:02:54]} 5. Bc4 {[%clk 0:02:57]}  Bg7 {[%clk 0:02:54]} 6. O-O {[%clk 0:02:57]}  a6 {[%clk 0:02:50]} 7. a3 {[%clk 0:02:38]}  b5 {[%clk 0:02:46]} 8. Ba2 {[%clk 0:02:37]}  Nd4 {[%clk 0:02:45]} 9. d3 {[%clk 0:02:33]}  Nf6 {[%clk 0:02:35]} 10. e5 {[%clk 0:02:31]}  Nd7 {[%clk 0:02:14]} 11. exd6 {[%clk 0:02:18]}  exd6 {[%clk 0:02:14]} 12. Re1+ {[%clk 0:02:16]}  Kf8 {[%clk 0:02:12]} 13. Ng5 {[%clk 0:02:11]}  Nf5 {[%clk 0:01:08]} 14. Bxf7 {[%clk 0:01:59]}  Bd4+ {[%clk 0:00:59]} 15. Kh1 {[%clk 0:01:59]}  Nf6 {[%clk 0:00:52]} 16. Nce4 {[%clk 0:01:36]}  Ra7 {[%clk 0:00:37]} 17. Ba2 {[%clk 0:01:27]}  Re7 {[%clk 0:00:25]} 18. c3 {[%clk 0:01:23]}  h6 {[%clk 0:00:12]} 19. cxd4 {[%clk 0:01:17]}  hxg5 {[%clk 0:00:12]} 20. Nxf6 {[%clk 0:01:17]}  Rxe1+ {[%clk 0:00:07]} 21. Qxe1 {[%clk 0:01:18]}  Qxf6 {[%clk 0:00:07]} 22. fxg5 {[%clk 0:01:16]}  Qxd4 {[%clk 0:00:07]} 23. Bd2 {[%clk 0:01:09]}  Bd7 {[%clk 0:00:06]} 24. Bc3 {[%clk 0:01:08]}  Qh4 {[%clk 0:00:03]} 25. Bxh8 {[%clk 0:01:01]}  Qxh8 {[%clk 0:00:04]} 26. Qf2 {[%clk 0:00:47]}  Bc6 {[%clk 0:00:04]} 27. Re1 {[%clk 0:00:47]}  Qh5 {[%clk 0:00:02]} 28. Kg1 {[%clk 0:00:41]}  Qxg5 {[%clk 0:00:01]} 29. Qe2 {[%clk 0:00:41]} 1-0


[Site "https://www.chess.com"]

[Event "Titled Tuesday Blitz May 24 Early 2022"]
[White "Johnson, Ben"]
[Black "Gatterer, Florian"]
[WhiteFideId "2010917"]
[BlackFideId "811688"]
[WhiteElo "2207"]
[BlackElo "2218"]
[Result "0-1"]
[Round "09"]
[TimeControl "180+1"]
[Date "2022.05.25"]
[WhiteClock "0:00:03"]
[BlackClock "0:00:19"]

1. Nf3 {[%clk 0:03:00]}  g6 {[%clk 0:02:54]} 2. e4 {[%clk 0:02:57]}  c5 {[%clk 0:02:52]} 3. d4 {[%clk 0:02:53]}  cxd4 {[%clk 0:02:52]} 4. Qxd4 {[%clk 0:02:52]}  Nf6 {[%clk 0:02:52]} 5. e5 {[%clk 0:02:51]}  Nc6 {[%clk 0:02:52]} 6. Qa4 {[%clk 0:02:20]}  Nd5 {[%clk 0:02:47]} 7. c4 {[%clk 0:02:12]}  Nb6 {[%clk 0:02:46]} 8. Qc2 {[%clk 0:02:08]}  Bg7 {[%clk 0:02:44]} 9. Bf4 {[%clk 0:02:01]}  O-O {[%clk 0:02:42]} 10. Nc3 {[%clk 0:01:57]}  a5 {[%clk 0:02:28]} 11. h4 {[%clk 0:01:53]}  h5 {[%clk 0:02:25]} 12. O-O-O {[%clk 0:01:49]}  a4 {[%clk 0:02:25]} 13. Kb1 {[%clk 0:01:38]}  a3 {[%clk 0:02:21]} 14. b3 {[%clk 0:01:35]}  d6 {[%clk 0:02:08]} 15. exd6 {[%clk 0:01:28]}  Bf5 {[%clk 0:02:02]} 16. Bd3 {[%clk 0:01:18]}  Nb4 {[%clk 0:02:01]} 17. Bxf5 {[%clk 0:01:18]}  Nxc2 {[%clk 0:01:59]} 18. Kxc2 {[%clk 0:00:50]}  gxf5 {[%clk 0:01:50]} 19. dxe7 {[%clk 0:00:45]}  Qxe7 {[%clk 0:01:45]} 20. Rhe1 {[%clk 0:00:46]}  Qb4 {[%clk 0:01:41]} 21. Rd3 {[%clk 0:00:34]}  Rfe8 {[%clk 0:01:20]} 22. Bd6 {[%clk 0:00:28]}  Qa5 {[%clk 0:01:04]} 23. Ne5 {[%clk 0:00:19]}  Bxe5 {[%clk 0:00:56]} 24. b4 {[%clk 0:00:11]}  Qa6 {[%clk 0:00:47]} 25. Bxe5 {[%clk 0:00:09]}  Nxc4 {[%clk 0:00:45]} 26. Rg3+ {[%clk 0:00:09]}  Kh7 {[%clk 0:00:39]} 27. Bd4 {[%clk 0:00:04]}  Rg8 {[%clk 0:00:25]} 28. Nd5 {[%clk 0:00:03]}  Qa4+ {[%clk 0:00:19]} 0-1


[Site "https://www.chess.com"]